Cogmind - Beta 17.1 @@@ ROGUE MODE // 2026.08.24 @ 14:35:08 Player: Minty Result: Destroyed by 97-RSD(R) with Subdweller Shrapnel Launcher Performance ------------- Evolutions (0) 0 Regions Visited (2) 400 Robots Destroyed (22) 110 Value Destroyed (802) 802 Prototype IDs (14) 280 Alien Tech Used (0) 0 Bonus (-28) -28 TOTAL SCORE: 1564 Bonus ------- Friendly Fire -28 Cogmind --------- Core Integrity 0/250 Matter 117/300 Energy 125/125 System Corruption 0% Temperature Cool (0) Movement Treading (160) Location -10/Subcaves Parts ------- > --- POWER (1) -------- Light Ion Engine > --- PROPULSION (2) --- Spiked Treads Spiked Treads > --- UTILITY (2) ------ Scrap Shield > --- WEAPON (2) ------- Heavy Battle Rifle Subdweller Shrapnel Launcher > --- INVENTORY (5) ---- Cargo Legs Makeshift Hacking Suite Makeshift Axe Peak State ------------ > --- POWER ------------ Light Ion Engine > --- PROPULSION ------- Spiked Treads Wheel > --- UTILITY ---------- Small Storage Unit Makeshift Light Armor Plating > --- WEAPON ----------- Heavy Battle Rifle Makeshift Axe > --- INVENTORY -------- Light Treads Light Treads Cargo Legs Makeshift Hacking Suite Grenade Launcher Grenade Launcher [Rating: 19] Favorites ----------- Power Light Ion Engine Engine Light Ion Engine Propulsion Spiked Treads Treads Spiked Treads Leg Aluminum Leg Wheel Wheel Utility Small Storage Unit Device Subdweller Optics Storage Small Storage Unit Protection Makeshift Light Armor Plating Weapon Grenade Launcher Energy Gun Small Laser Ballistic Gun Heavy Battle Rifle Launcher Grenade Launcher Special Weapon Flamer Slashing Weapon Makeshift Axe Build | -11 -10 -10 ------- Run | Yrd Mat Sub Slots Evolved . | . . . Power . | . . . Propulsion . | . . . Utility . | . . . Weapon . | . . . Parts Attached 20 | . . 20 Power 1 | . . 1 Engine 1 | . . 1 Core . | . . . Reactor . | . . . Propulsion 5 | . . 5 Treads 3 | . . 3 Leg . | . . . Wheel 2 | . . 2 Hover . | . . . Flight . | . . . Utility 5 | . . 5 Device 2 | . . 2 Storage . | . . . Processor . | . . . Hackware . | . . . Protection 3 | . . 3 Artifact . | . . . Weapon 9 | . . 9 Energy Gun 1 | . . 1 Energy Cannon . | . . . Ballistic Gun 3 | . . 3 Ballistic Cannon . | . . . Launcher 3 | . . 3 Special Weapon 1 | . . 1 Impact Weapon . | . . . Slashing Weapon 1 | . . 1 Piercing Weapon . | . . . Special Melee Weapon . | . . . Unidentified Prototypes . | . . . Parts Lost 4 | . . 4 Power . | . . . Propulsion 1 | . . 1 Utility . | . . . Weapon 3 | . . 3 Highest Loss Streak 1 | . . 1 To Critical Strikes 1 | . . 1 Average Backups 5 | . 6 5 Power . | . 1 . Propulsion 2 | . 4 1 Utility . | . . . Weapon 2 | . 1 2 Tool/Special . | . . . Unused Backups 14 | . 6 8 Power 2 | . 1 1 Propulsion 7 | . 2 5 Utility 2 | . 1 1 Weapon 3 | . 2 1 Tool/Special . | . . . Average Slot Usage (%) 89 | . 85 89 Engine 14 | . 14 14 Treads 17 | . . 20 Leg 4 | . 28 . Wheel 5 | . . 6 Storage 6 | . 14 4 Protection 12 | . . 14 Energy Gun 5 | . 28 1 Ballistic Gun 3 | . . 4 Launcher 12 | . . 14 Special Weapon 1 | . . 2 Slashing Weapon 4 | . . 5 Peak Build Rating 19 | . 6 19 Average Rating 12 | . 6 13 On Entrance 6 | 6 6 6 Avg Prop Armor Cover (%) 14 | . . 14 Naked Turns . | . . . Heaviest Build 32 | 10 10 32 Greatest Support 40 | 20 20 40 Greatest Overweight (x) 1 | . . 1 Average Overweight (x) . | . . . Largest Inventory Capacity 8 | . 8 8 Average Capacity 6 | . 8 6 Most Carried 8 | . 8 8 Average Carried 5 | . 6 5 Final Capacity 8 | 8 8 5 Final Carried 8 | 6 8 5 Class Distribution -------------------- 77% | Mutant 22% | Derelict-Mutant Dominant Class ---------------- Mutant | -10/Materials Mutant | -10/Subcaves Resources | -11 -10 -10 ----------- Run | Yrd Mat Sub Matter Collected 1011 | 200 . 811 Remotely . | . . . Salvage Created 637 | . . 637 Parts 39 | . . 39 Haulers Intercepted . | . . . Recyclers Shooed . | . . . Parts Field Recycled . | . . . Retrieved Matter . | . . . Parts Self-Destructed 11 | . . 11 Prevented . | . . . Parts Restored . | . . . Kills | -11 -10 -10 ------- Run | Yrd Mat Sub Combat Hostiles Destroyed 22 | . . 22 Melee 7 | . . 7 Guns 1 | . . 1 AOE 14 | . . 14 Classes Destroyed 5 | . . 5 Swarmer 3 | . . 3 Grunt 1 | . . 1 Sentry 1 | . . 1 Artisan 3 | . . 3 Subdweller 17 | . . 17 Best Kill Streak 3 | . . 3 Combat Bots Only 3 | . . 3 Max Kills in Single Turn 2 | . . 2 Gunslinging . | . . . Exploded 2 | . . 2 Melee 1 | . . 1 Uniques/NPCs Destroyed . | . . . Combat | -11 -10 -10 -------- Run | Yrd Mat Sub Hostile Shots Fired 68 | . 6 62 Missed 30 | . 4 26 Hits 38 | . 2 36 Projectile 38 | . 2 36 AOE 3 | . . 3 Critical Strikes 1 | . . 1 Damage Taken 997 | . 32 965 Core 265 | . . 265 Absorbed by Shields . | . . . Core Remaining (%) 100 | 100 . . Volleys Fired 55 | . 2 53 Largest 2 | . 2 2 Hottest 130 | . 80 130 Shots Fired 82 | . 4 78 Gun 18 | . 4 14 Cannon . | . . . Launcher 61 | . . 61 Special 3 | . . 3 Kinetic 23 | . . 23 Thermal 10 | . 4 6 Explosive 49 | . . 49 Electromagnetic . | . . . Robot Hit Streak 10 | . 1 10 Robot Miss Streak 1 | . 1 1 Penetration Max . | . . . Secondary Targets . | . . . Shots Hit Robots 53 | . 2 51 Core Hits 40 | . 1 39 Critical Kills . | . . . Critical Parts Destroyed . | . . . Critical Strikes 1 | . . 1 Sever 1 | . . 1 Melee Attacks 55 | . . 55 Impact . | . . . Slashing 55 | . . 55 Piercing . | . . . Sneak Attacks . | . . . Combat Hostiles . | . . . Follow-up Attacks . | . . . Damage Inflicted 2722 | . 23 2699 Guns 195 | . 23 172 Cannons . | . . . Explosions 1820 | . . 1820 Melee 688 | . . 688 Ramming 8 | . . 8 Kinetic 422 | . . 422 Thermal 76 | . 23 53 Explosive 1528 | . . 1528 Electromagnetic . | . . . Impact . | . . . Slashing 688 | . . 688 Piercing . | . . . Highest Corruption . | . . . Average Corruption . | . . . Corruption Purged . | . . . Corruption Blocked . | . . . Overload Shots . | . . . Overflow Damage 14 | . . 14 Projectiles . | . . . Explosions 14 | . . 14 Melee . | . . . Knockbacks . | . . . Impact . | . . . Kinetic . | . . . Secondary . | . . . Self-Inflicted Damage 144 | . . 144 Shots 6 | . . 6 Rammed 2 | . . 2 Targets Rammed 3 | . . 3 Kicked . | . . . Crushed 1 | . . 1 Highest Temperature 18 | . 18 . Average Temperature 12 | . 12 . Received Heat Transfer 117 | . 18 99 Siege Activations . | . . . Martial Activations . | . . . Shielding Activations . | . . . Robots Disrupted . | . . . Combat Hostiles . | . . . Robots Corrupted . | . . . Combat Hostiles . | . . . Parts Fried . | . . . Impact Corruptions . | . . . Robots Melted . | . . . Combat Hostiles . | . . . Parts Melted . | . . . Heat Transferred 217 | . 50 167 Parts Sabotaged . | . . . Parts Stolen . | . . . Parts Stripped . | . . . Power Chain Reactions . | . . . Alert | -11 -10 -10 ------- Run | Yrd Mat Sub Maximum Alert Level . | . . . Low Security (%) 100 | . 100 . Level 1 . | . . . Level 2 . | . . . Level 3 . | . . . Level 4 . | . . . Level 5 . | . . . High Security . | . . . Max Security . | . . . Peak Influence 15 | . 15 . Initial . | . . . Average . | . . . Influence Increases 305 | . 15 290 Destroy 0b10 Robot/C 100 | . . 100 Destroy Leader 10 | . . 10 Partial Spotted 15 | . 15 . Lose Combat Pursuer 180 | . . 180 Influence Decreases 280 | . 15 265 Time Decay 260 | . 15 245 Lost Part 20 | . . 20 Squads Dispatched 1 | . 1 . Investigation 1 | . 1 . Extermination . | . . . Reinforcement . | . . . Assault . | . . . Garrison . | . . . Intercept . | . . . Searches Triggered . | . . . Construction Impeded . | . . . Haulers Reinforced . | . . . Active Scanning Responses . | . . . Cargo Convoy Interrupts . | . . . Stealth | -11 -10 -10 --------- Run | Yrd Mat Sub Distress Signals . | . . . Communications Jammed . | . . . Distress Signals . | . . . Times Spotted 33 | . 5 28 Peak Tracking Total 4 | . 2 4 Tactical Retreats 5 | . . 5 Traps | -11 -10 -10 ------- Run | Yrd Mat Sub Traps Triggered 1 | . . 1 Indirectly . | . . . Trap Hack Attempts . | . . . Triggered . | . . . Disarmed . | . . . Reprogrammed . | . . . Reused . | . . . Traps Extracted . | . . . Installed . | . . . Triggered . | . . . Machines | -11 -10 -10 ---------- Run | Yrd Mat Sub Machines Disabled 1 | . . 1 Max in Single Turn 1 | . . 1 Machines Repaired . | . . . Machines Dismantled . | . . . Machines Sabotaged . | . . . Overloaded Fab Kills . | . . . Hacking | -11 -10 -10 --------- Run | Yrd Mat Sub Machines Accessed 3 | . 1 2 Terminals 1 | . 1 . Fabricators . | . . . Repair Stations . | . . . Recycling Units . | . . . Scanalyzers . | . . . Garrison Access . | . . . Total Hacks 7 | . 2 5 Successful 6 | . 1 5 Failed 1 | . 1 . Catastrophic . | . . . Database Lockouts . | . . . Manual . | . . . Terminals 2 | . 2 . Fabricators . | . . . Repair Stations . | . . . Recycling Units . | . . . Scanalyzers . | . . . Garrison Access . | . . . Terminal Hacks 6 | . 1 5 Record 4 | . . 4 Hauler Manifests 1 | . 1 . Proto ID Catalog 1 | . . 1 Fabricator Hacks . | . . . Repair Station Hacks . | . . . Recycling Unit Hacks . | . . . Scanalyzer . | . . . Garrison Access Hacks . | . . . Unauthorized Hacks . | . . . Terminals . | . . . Fabricators . | . . . Repair Stations . | . . . Recycling Units . | . . . Scanalyzers . | . . . Garrison Access . | . . . Data Cores Recovered 1 | . 1 . Used . | . . . Hacking Detections 1 | . 1 . Full Trace Events . | . . . Feedback Events . | . . . Feedback Blocked . | . . . Robot Schematics Acquired . | . . . Robots Built . | . . . Authchips . | . . . Time . | . . . Total Robot Build Rating . | . . . Part Schematics Acquired . | . . . Parts Built . | . . . Authchips . | . . . Time . | . . . Total Part Build Rating . | . . . Part Studies Acquired . | . . . Parts Repaired . | . . . Time . | . . . Parts Recycled . | . . . Recycled Matter . | . . . Retrieved Matter . | . . . Retrieved Components . | . . . Parts Scanalyzed . | . . . Part Schematics Acquired . | . . . Parts Damaged . | . . . Bothacking | -11 -10 -10 ------------ Run | Yrd Mat Sub Used RIF Installer . | . . . Robots Hacked . | . . . Non-combat . | . . . Combat . | . . . Robot Hacks Applied . | . . . Relay Couplers Released . | . . . Fabnet Peak Effective % . | . . . Robots Rewired . | . . . Allies Hacked . | . . . Hacks Repelled . | . . . Allies | -11 -10 -10 -------- Run | Yrd Mat Sub Total Allies . | . . . Largest Group . | . . . Highest-Rated Group . | . . . Highest-Rated Ally . | . . . Total Orders . | . . . Ally Attacks . | . . . Total Damage . | . . . Kills . | . . . Allies Corrupted . | . . . Allies Melted . | . . . Intel | -11 -10 -10 ------- Run | Yrd Mat Sub Active Infowar (turns) 154 | . . 154 Optics 154 | . . 154 Robot Analysis Total . | . . . Derelict Logs Recovered 2 | . . 2 Drone Launches . | . . . Drone Recoveries . | . . . Exploration | -11 -10 -10 ------------- Run | Yrd Mat Sub Turns Passed 4605 | . 695 3910 Spaces Moved 2825 | 1 176 2648 Core . | . . . Treads 1435 | . . 1435 Legs 234 | 1 176 57 Wheels 1156 | . . 1156 Hover . | . . . Flight . | . . . Fastest Speed 80 | 120 120 80 Average Speed 127 | 120 120 127 Slowest Speed 160 | 120 120 160 Overloaded Moves . | . . . Propulsion Burnouts . | . . . Robots Hopped . | . . . Potential Cave-ins . | . . . Cave-ins Triggered . | . . . Exploration Rate (%) 44 | 2 34 97 Regions Visited 2 Branch Regions 1 Pre-discovered Areas . | . . . Known Exits Taken . | . . . Unknown Exits Taken 2 | 1 1 . Scrap Searched 9 | . . 9 Spaces Dug 19 | . . 19 Terrain Destroyed 487 | . . 487 Melee 19 | . . 19 Projectile 1 | . . 1 AOE 467 | . . 467 Terrain Rammed . | . . . Walls Destroyed . | . . . Machines Disabled . | . . . Actions | -11 -10 -10 --------- Run | Yrd Mat Sub Total 3686 | . 656 3030 Wait 697 | . 477 220 Move 2823 | . 175 2648 Hop . | . . . Pick Up 6 | . 2 4 Fast Attach 8 | . . 8 Attach 5 | . . 5 Detach 2 | . . 2 Swap 13 | . . 13 Drop 16 | . . 16 Fire 55 | . 2 53 Melee 55 | . . 55 Ram . | . . . Kick . | . . . Crush 3 | . . 3 Escape Stasis . | . . . Rewire . | . . . Trap . | . . . Miscellaneous 3 | . . 3 Route ------- -11/Scrapyard -10/Materials (discovered 3 exits: [*Mat] / [*Min] / *Sub) -10/Subcaves (discovered 4 exits: [*Mat x2] / *Rec / [*Scr]) History --------- Turn | Location | Event 1 | -11/Scrapyard | Discovered new exit (range 0) 1 | -11/Scrapyard | Entered Materials 2 | -10/Materials | Met a group of wandering Federalists 96 | -10/Materials | Discovered new exit (range 8) 118 | -10/Materials | Discovered new exit (range 9) 305 | -10/Materials | Build established: Mutant 638 | -10/Materials | Discovered new exit (range 9) 696 | -10/Materials | Entered Subcaves 697 | -10/Subcaves | Continued accompanying wandering Federalists (6) 787 | -10/Subcaves | Discovered new exit (range 15) 815 | -10/Subcaves | Discovered new exit (range 16) 968 | -10/Subcaves | A swath of the cavern ceiling suddenly collapsed 988 | -10/Subcaves | Visited Clippyterm 990 | -10/Subcaves | Identified exit to Recycling 990 | -10/Subcaves | Learned Factory garrison access intel 1055 | -10/Subcaves | Visited 4L-MR0's lab 1070 | -10/Subcaves | Found Cargo Legs 1305 | -10/Subcaves | Learned 2 Materials zone layouts 1623 | -10/Subcaves | Shifting Twisted Machinery released Sub. Beam Cannon 1751 | -10/Subcaves | Core integrity fell below 50% 1909 | -10/Subcaves | Shifting Twisted Machinery released Sub. Beam Cannon 1912 | -10/Subcaves | Learned Materials terminal intel 1916 | -10/Subcaves | Shifting Twisted Machinery released Flamer 1930 | -10/Subcaves | Shifting Twisted Machinery released Mak. System Restoration Module 2104 | -10/Subcaves | Shifting Twisted Machinery released Mak. Flight Unit 2182 | -10/Subcaves | Build established: Derelict-Mutant 2685 | -10/Subcaves | Ambushed by Subdweller buried in earth 3171 | -10/Subcaves | Build established: Mutant 3499 | -10/Subcaves | A swath of the cavern ceiling suddenly collapsed 3592 | -10/Subcaves | Ambushed by Subdweller buried in earth 4108 | -10/Subcaves | Ambushed by Subdweller buried in earth 4586 | -10/Subcaves | Ambushed by Subdweller buried in earth 4588 | -10/Subcaves | Ambushed by Subdweller buried in earth 4588 | -10/Subcaves | Ambushed by Subdweller buried in earth 4606 | -10/Subcaves | Destroyed by 97-RSD(R) with Subdweller Shrapnel Launcher Last Messages --------------- 04132_ The unstable cave ceiling collapses. 04258_ Acquired 8 matter. 04271_ Acquired 32 matter. 04320_ Acquired 3 matter. 04389_ Subatomizers dissect the Imp. Heat Sink. 04391_ Acquired 28 matter. 04394_ Acquired 26 matter. 04399_ Subatomizers dissect the Imp. Heat Sink. 04415_ Acquired 18 matter. 04526_ The unstable cave ceiling collapses. 04565_ Acquired 24 matter. 04587_ 6W-36M(R): "ARGHSUB!" 04589_ 7T-THK(R): "ARGHSUB!" 04589_ 97-RSD(R): "ARGHSUB!" 04591_ 7T-THK(R) destroyed. 04593_ Grenade Launcher destroyed. 04594_ 6W-36M(R) destroyed. 04596_ Sub. Shrapnel Launcher shoots sparks and powers down. 04599_ The unstable cave ceiling collapses. 04605_ 97-RSD(R) affixes Scrap Shield Fragment to Scrap Shield. Map ----- +----------------------------------------------------+ | ## # #####????????????????????????# ##?# | | #???????????????????????## ##### | | #* # #?????????????????????### ## | | ! & #?????????????????????# ##### | | #?????????????????????# ##???# | | # #?????????????????????##% #???## | | ## # ##?????????????????????# ##????#### | | ?# ##??????????????????????## ###### # | | ?#### ##???????????????????????# ## | | ????### ####????????????????????????## ## | | ??????###????????????????????????????# ## # | | ????????????????????????????????###### #### ### | | ????????????????????????????????# ## ##?#### | | ????????????????????????????????# ## ###??# | | ????????????????????????????????# # #??## | | ??????????????????????????????### ######???# | | ??????????????????????????###?# #?????#### | | ?????????????????????????## #?## #????# | | ?????????????????????????# ##?# ##?# | | ????????????????????????# ### #?# | | #??????????????????###### ### | | #????????????????### ;; ; ## ##### | | ##??????????????### ### ##?###### | | #??????????????# ## # ### | | #??????????????# ## # ### | | ##??????????????# @ #### # | | ??????????????# # ##### | | ??????????????# R ;# | | ??????????????# # ; ### # | | ??????????????# ; ##??# ## # | | ?????????????# [ ##### #??? | | ????????????# # & ### ###?? | | ????????????# #### ##?# | | ????????????? ## ## ## # "### | | ????????????? ###?## ### ## ##### # "## | | ?????????????? #?????###?##### #???# #"# | | ??????????????####????????####??# #???## " # | | ?????????????????????###### #### #????# # | | ?????????????????????# " ## ##???# " ## | | ?????????????????????#""""" ##### ##? | | ????????????????????##" "" ### #? | | ??????????????????###" # ##???#? | | ??????????????????# " " ##????## | | ??????????????????# ## #####?????# | | ??????????????????# "### ##???????### | | ??????????????????##" ### ##???????# | | ???????????????????# " ##?????## | | ???????????????????# #?????# # | | ???????????????????# """ """" ##?????## ## | | ???????????????????### ###"""" #??????# # | +----------------------------------------------------+ Best States ------------- Heat Dissipation 25 Energy Generation 10 Energy Capacity 125 Matter Stores 300 Matter Capacity 300 Sight Range 21 Terrain Scan Density 10 Armor Coverage 800 Evasion (%) 55 Recoil Reduction 2 Item Schematics ----------------- None Robot Schematics ------------------ None Fabricated ------------ Nothing Repaired ---------- Nothing Studied --------- None Alien Tech Used ----------------- None Achievements -------------- None Challenges ------------ None Game ------ Seed DataAerolevSuperbattery Manual? 0 Play Time 00:17:09 Cumulative 1378.3 hours Start 2026.08.24 @ 13:37:49 End 2026.08.24 @ 14:35:08 Sessions 5 Manual Loads 0 Difficulty Rogue Special Mode None Game No. 1690 Rogue 1406 Adventurer 124 Explorer 160 Win Type - Total 72 Types 55/0/11/4/1/0/0/1/0/0 Lore% 92 Gallery% 84 Achievement% 74 Wizard Run 0 Options --------- Layout 0 ASCII 0 Keyboard 1 Movement Numpad Keybinds 0 Fullscreen 2 Font 18/X11 Map View 76x50 Zoom Use 0% Tactical HUD 1 Map Filters NONE Filters NONE Steam 1 RUN: a9b87924-d0a9-46c1-bfab-4d6ba323d426